[Event "Late-Titled-Tuesday-Blitz-March-12-2024"]
[Site "Chess.com"]
[Date "2024.03.12"]
[Round "6"]
[White "Rogarcia1"]
[Black "buenamor1972"]
[Result "0-1"]
[WhiteElo "2494"]
[BlackElo "2380"]
[TimeControl "180+1"]
[EndTime "15:05:26 PDT"]
[Termination "buenamor1972 won by resignation"]

1. e4 {[%clk 0:03:00.9]} 1... e5 {[%clk 0:02:59.1]} 2. Nf3 {[%clk 0:02:58.4]}
2... Nc6 {[%clk 0:02:59.6]} 3. Bb5 {[%clk 0:02:55.8]} 3... a6 {[%clk 0:02:58.9]}
4. Ba4 {[%clk 0:02:56]} 4... Nf6 {[%clk 0:02:58.5]} 5. Nc3 {[%clk 0:02:56.3]}
5... b5 {[%clk 0:02:55.3]} 6. Bb3 {[%clk 0:02:56.4]} 6... Bc5 {[%clk 0:02:55.9]}
7. Nd5 {[%clk 0:02:54.8]} 7... h6 {[%clk 0:02:49]} 8. d3 {[%clk 0:02:53.1]} 8...
d6 {[%clk 0:02:47.5]} 9. c3 {[%clk 0:02:52.1]} 9... Rb8 {[%clk 0:02:44.2]} 10.
h3 {[%clk 0:02:51.5]} 10... Nxd5 {[%clk 0:02:43.6]} 11. Bxd5 {[%clk 0:02:51.3]}
11... Ne7 {[%clk 0:02:43.9]} 12. Bb3 {[%clk 0:02:51.4]} 12... O-O {[%clk
0:02:43.6]} 13. d4 {[%clk 0:02:49.5]} 13... exd4 {[%clk 0:02:42.7]} 14. cxd4
{[%clk 0:02:49.8]} 14... Bb6 {[%clk 0:02:42]} 15. O-O {[%clk 0:02:49.3]} 15...
d5 {[%clk 0:02:42.2]} 16. e5 {[%clk 0:02:44.1]} 16... Bf5 {[%clk 0:02:42.1]} 17.
Be3 {[%clk 0:02:38.3]} 17... Ng6 {[%clk 0:02:22.1]} 18. Rc1 {[%clk 0:02:38]}
18... Qd7 {[%clk 0:02:21.9]} 19. Bc2 {[%clk 0:02:23.1]} 19... f6 {[%clk
0:02:19.1]} 20. exf6 {[%clk 0:02:10.6]} 20... Rxf6 {[%clk 0:02:18.2]} 21. Bxf5
{[%clk 0:01:58.2]} 21... Rxf5 {[%clk 0:02:13.4]} 22. Nh4 {[%clk 0:01:58.3]}
22... Nxh4 {[%clk 0:02:11.8]} 23. Qg4 {[%clk 0:01:45.4]} 23... g5 {[%clk
0:02:00.7]} 24. f4 {[%clk 0:01:37.5]} 24... Rbf8 {[%clk 0:01:59.5]} 25. Rfe1
{[%clk 0:01:31.3]} 25... R5f7 {[%clk 0:01:56.3]} 26. Qh5 {[%clk 0:01:30.2]}
26... Nf5 {[%clk 0:01:31.7]} 27. Bf2 {[%clk 0:01:26]} 27... gxf4 {[%clk
0:01:20.2]} 28. Re5 {[%clk 0:01:25.2]} 28... Ng7 {[%clk 0:00:56.3]} 29. Qxh6
{[%clk 0:01:22.1]} 29... Rf6 {[%clk 0:00:56.4]} 30. Qh4 {[%clk 0:01:19.7]} 30...
Rg6 {[%clk 0:00:54.2]} 31. Rce1 {[%clk 0:01:16.4]} 31... f3 {[%clk 0:00:53.5]}
32. g4 {[%clk 0:01:14.1]} 32... Qd8 {[%clk 0:00:47.9]} 33. Qg3 {[%clk
0:01:10.2]} 33... Qf6 {[%clk 0:00:45.4]} 34. Be3 {[%clk 0:00:58.3]} 34... f2+
{[%clk 0:00:31.2]} 35. Bxf2 {[%clk 0:00:57.9]} 35... Qxf2+ {[%clk 0:00:31]} 36.
Qxf2 {[%clk 0:00:57.2]} 36... Rxf2 {[%clk 0:00:31.6]} 37. Kxf2 {[%clk
0:00:57.6]} 37... Bxd4+ {[%clk 0:00:32.2]} 38. Kf3 {[%clk 0:00:57.2]} 38... Bxe5
{[%clk 0:00:31.7]} 39. Rxe5 {[%clk 0:00:58.1]} 39... c6 {[%clk 0:00:32.1]} 40.
Kf4 {[%clk 0:00:56.8]} 40... Re6 {[%clk 0:00:32]} 41. Rg5 {[%clk 0:00:56.1]}
41... Kf7 {[%clk 0:00:31.3]} 42. h4 {[%clk 0:00:55.8]} 42... Re2 {[%clk
0:00:30.7]} 43. Kg3 {[%clk 0:00:54.8]} 43... Rxb2 {[%clk 0:00:29.8]} 44. h5
{[%clk 0:00:55.2]} 44... Ne6 {[%clk 0:00:24.3]} 45. Rf5+ {[%clk 0:00:55.3]}
45... Kg7 {[%clk 0:00:24.2]} 46. Re5 {[%clk 0:00:54.9]} 46... Nd4 {[%clk
0:00:22.9]} 47. g5 {[%clk 0:00:53.4]} 47... Re2 {[%clk 0:00:21.4]} 0-1

[Event "Late-Titled-Tuesday-Blitz-March-12-2024"]
[Site "Chess.com"]
[Date "2024.03.12"]
[Round "6"]
[White "platy3"]
[Black "Polish_fighter3000"]
[Result "0-1"]
[WhiteElo "2970"]
[BlackElo "3149"]
[TimeControl "180+1"]
[EndTime "15:05:27 PDT"]
[Termination "Polish_fighter3000 won by resignation"]

1. e4 {[%clk 0:03:00.9]} 1... e5 {[%clk 0:02:59.3]} 2. Nf3 {[%clk 0:03:01.2]}
2... Nc6 {[%clk 0:03:00]} 3. Bc4 {[%clk 0:03:01.7]} 3... Bc5 {[%clk 0:02:59.4]}
4. d3 {[%clk 0:03:01.7]} 4... Nf6 {[%clk 0:02:59.8]} 5. O-O {[%clk 0:03:01.7]}
5... O-O {[%clk 0:02:59.6]} 6. a4 {[%clk 0:03:01.3]} 6... a5 {[%clk 0:02:57.6]}
7. h3 {[%clk 0:03:00.9]} 7... d6 {[%clk 0:02:50.5]} 8. Be3 {[%clk 0:03:00.8]}
8... Bxe3 {[%clk 0:02:48.9]} 9. fxe3 {[%clk 0:03:00.8]} 9... Be6 {[%clk
0:02:43.3]} 10. Bxe6 {[%clk 0:03:00.5]} 10... fxe6 {[%clk 0:02:44.2]} 11. Nbd2
{[%clk 0:03:00.7]} 11... h6 {[%clk 0:02:29.4]} 12. c3 {[%clk 0:03:00.6]} 12...
Qd7 {[%clk 0:02:27.6]} 13. Qb3 {[%clk 0:03:00.2]} 13... Kh7 {[%clk 0:02:25.2]}
14. Rf2 {[%clk 0:02:59.3]} 14... b6 {[%clk 0:02:16.1]} 15. Raf1 {[%clk
0:02:58.6]} 15... Ne7 {[%clk 0:02:13]} 16. g4 {[%clk 0:02:49.3]} 16... Kh8
{[%clk 0:02:08]} 17. Nh4 {[%clk 0:02:42]} 17... Nh7 {[%clk 0:02:03]} 18. Ndf3
{[%clk 0:02:31.9]} 18... g5 {[%clk 0:01:24.6]} 19. Ng2 {[%clk 0:02:28.1]} 19...
Ng6 {[%clk 0:01:24.6]} 20. Nge1 {[%clk 0:02:07.1]} 20... Rf7 {[%clk 0:01:17]}
21. Nd2 {[%clk 0:02:06.6]} 21... Raf8 {[%clk 0:01:13.9]} 22. Rxf7 {[%clk
0:01:59.5]} 22... Rxf7 {[%clk 0:01:14.8]} 23. Rxf7 {[%clk 0:01:59.6]} 23... Qxf7
{[%clk 0:01:15.7]} 24. Nef3 {[%clk 0:02:00.1]} 24... Nf6 {[%clk 0:00:54]} 25.
Qc4 {[%clk 0:01:54.2]} 25... Qd7 {[%clk 0:00:51.7]} 26. d4 {[%clk 0:01:48.1]}
26... Kg7 {[%clk 0:00:50.4]} 27. Kf1 {[%clk 0:01:44.6]} 27... d5 {[%clk
0:00:29.3]} 28. Qb3 {[%clk 0:01:08.9]} 28... dxe4 {[%clk 0:00:26]} 29. dxe5
{[%clk 0:01:08.4]} 29... Qd3+ {[%clk 0:00:13.9]} 30. Kf2 {[%clk 0:01:03.9]}
30... Nd5 {[%clk 0:00:14.1]} 31. c4 {[%clk 0:00:59.2]} 31... Qxb3 {[%clk
0:00:05.1]} 32. Nxb3 {[%clk 0:01:00.1]} 32... exf3 {[%clk 0:00:05.2]} 33. cxd5
{[%clk 0:01:00]} 33... exd5 {[%clk 0:00:06.1]} 34. e6 {[%clk 0:00:56.1]} 34...
c5 {[%clk 0:00:05.7]} 35. Kxf3 {[%clk 0:00:49.2]} 35... Ne5+ {[%clk 0:00:05.6]}
36. Ke2 {[%clk 0:00:49.3]} 36... Nc4 {[%clk 0:00:05.9]} 37. e4 {[%clk 0:00:37]}
37... dxe4 {[%clk 0:00:06.8]} 38. Nc1 {[%clk 0:00:36.2]} 38... Nxb2 {[%clk
0:00:06]} 39. Ke3 {[%clk 0:00:35.9]} 39... Kf6 {[%clk 0:00:06.3]} 40. Kxe4
{[%clk 0:00:34.6]} 40... Kxe6 {[%clk 0:00:06.8]} 41. Ne2 {[%clk 0:00:29.3]}
41... Nxa4 {[%clk 0:00:07.7]} 42. Ng3 {[%clk 0:00:28.5]} 42... Nc3+ {[%clk
0:00:07.5]} 0-1

[Event "Late-Titled-Tuesday-Blitz-March-12-2024"]
[Site "Chess.com"]
[Date "2024.03.12"]
[Round "6"]
[White "steepedgames"]
[Black "GothamChess"]
[Result "0-1"]
[WhiteElo "2551"]
[BlackElo "2695"]
[TimeControl "180+1"]
[EndTime "15:05:27 PDT"]
[Termination "GothamChess won by resignation"]

1. d4 {[%clk 0:02:57.5]} 1... g6 {[%clk 0:02:56]} 2. Nf3 {[%clk 0:02:56.1]} 2...
Bg7 {[%clk 0:02:56.5]} 3. c4 {[%clk 0:02:55.3]} 3... d6 {[%clk 0:02:56.6]} 4.
Nc3 {[%clk 0:02:55.4]} 4... Bg4 {[%clk 0:02:55.8]} 5. e3 {[%clk 0:02:26.2]} 5...
Nc6 {[%clk 0:02:55.5]} 6. Be2 {[%clk 0:02:26.3]} 6... Nf6 {[%clk 0:02:53]} 7. d5
{[%clk 0:02:26.7]} 7... Nb8 {[%clk 0:02:51.3]} 8. h3 {[%clk 0:02:26.2]} 8... Bc8
{[%clk 0:02:50.7]} 9. Nd4 {[%clk 0:02:25.4]} 9... O-O {[%clk 0:02:48.7]} 10. e4
{[%clk 0:02:25.8]} 10... c5 {[%clk 0:02:48.1]} 11. Nc2 {[%clk 0:02:23.5]} 11...
a6 {[%clk 0:02:45.9]} 12. O-O {[%clk 0:02:22.2]} 12... b5 {[%clk 0:02:40.3]} 13.
cxb5 {[%clk 0:02:17.7]} 13... axb5 {[%clk 0:02:36.6]} 14. Bxb5 {[%clk
0:02:18.6]} 14... Ba6 {[%clk 0:02:29.1]} 15. a4 {[%clk 0:02:15.9]} 15... Nbd7
{[%clk 0:02:18.2]} 16. Bg5 {[%clk 0:02:10.2]} 16... h6 {[%clk 0:02:14.8]} 17.
Be3 {[%clk 0:02:08.8]} 17... Ne5 {[%clk 0:02:09.9]} 18. Qe2 {[%clk 0:02:04.5]}
18... c4 {[%clk 0:01:53.5]} 19. Na3 {[%clk 0:01:56.7]} 19... Qc7 {[%clk
0:01:47.2]} 20. Bd4 {[%clk 0:01:49.2]} 20... Nd3 {[%clk 0:01:40.9]} 21. Rad1
{[%clk 0:01:42.6]} 21... Nd7 {[%clk 0:01:34.1]} 22. Bxg7 {[%clk 0:01:42.1]}
22... Kxg7 {[%clk 0:01:34.4]} 23. Nxc4 {[%clk 0:01:37.6]} 23... Bxb5 {[%clk
0:01:24.1]} 24. axb5 {[%clk 0:01:33.7]} 24... Nf4 {[%clk 0:01:19.1]} 25. Qe3
{[%clk 0:01:27.5]} 25... Nxg2 {[%clk 0:01:04.1]} 26. Qd4+ {[%clk 0:01:27.4]}
26... Ne5 {[%clk 0:01:04.3]} 27. f4 {[%clk 0:00:45.1]} 27... Nxf4 {[%clk
0:00:56.1]} 28. Nxd6 {[%clk 0:00:34.3]} 28... Qxc3 {[%clk 0:00:41.8]} 29. Rxf4
{[%clk 0:00:32.2]} 29... Qg3+ {[%clk 0:00:27.4]} 30. Kh1 {[%clk 0:00:30.6]}
30... Qxf4 {[%clk 0:00:26.7]} 31. Nc4 {[%clk 0:00:27.1]} 31... Qf3+ {[%clk
0:00:16.9]} 32. Kg1 {[%clk 0:00:26.4]} 32... Qg3+ {[%clk 0:00:17]} 33. Kh1
{[%clk 0:00:26]} 33... Qxh3+ {[%clk 0:00:17.3]} 34. Kg1 {[%clk 0:00:25.9]} 34...
Qg3+ {[%clk 0:00:16.6]} 35. Kh1 {[%clk 0:00:24.9]} 35... f6 {[%clk 0:00:17.3]}
36. Nxe5 {[%clk 0:00:18.4]} 36... fxe5 {[%clk 0:00:17.1]} 37. Qd2 {[%clk
0:00:15.3]} 37... Rf2 {[%clk 0:00:14.8]} 0-1

[Event "Late-Titled-Tuesday-Blitz-March-12-2024"]
[Site "Chess.com"]
[Date "2024.03.12"]
[Round "6"]
[White "SergioMoralesG"]
[Black "pirulillo"]
[Result "0-1"]
[WhiteElo "2469"]
[BlackElo "2316"]
[TimeControl "180+1"]
[EndTime "15:05:32 PDT"]
[Termination "pirulillo won by resignation"]

1. d4 {[%clk 0:02:56]} 1... Nf6 {[%clk 0:02:48.4]} 2. c4 {[%clk 0:02:55.2]} 2...
g6 {[%clk 0:02:48.3]} 3. Nc3 {[%clk 0:02:55.1]} 3... Bg7 {[%clk 0:02:48.7]} 4.
e4 {[%clk 0:02:55.7]} 4... d6 {[%clk 0:02:48.4]} 5. Nf3 {[%clk 0:02:55.9]} 5...
O-O {[%clk 0:02:48.7]} 6. Be2 {[%clk 0:02:56.5]} 6... e5 {[%clk 0:02:47.9]} 7.
Be3 {[%clk 0:02:57]} 7... Ng4 {[%clk 0:02:46.9]} 8. Bg5 {[%clk 0:02:57.3]} 8...
f6 {[%clk 0:02:47.1]} 9. Bh4 {[%clk 0:02:57.9]} 9... g5 {[%clk 0:02:47]} 10. Bg3
{[%clk 0:02:57.1]} 10... Nd7 {[%clk 0:02:46.9]} 11. O-O {[%clk 0:02:53.4]} 11...
Nh6 {[%clk 0:02:43.6]} 12. b4 {[%clk 0:02:47.4]} 12... a5 {[%clk 0:02:25.7]} 13.
bxa5 {[%clk 0:02:31.5]} 13... Rxa5 {[%clk 0:02:23.1]} 14. d5 {[%clk 0:02:20]}
14... f5 {[%clk 0:02:16.6]} 15. exf5 {[%clk 0:02:19.3]} 15... Nxf5 {[%clk
0:02:17.1]} 16. Ne4 {[%clk 0:02:19.2]} 16... h6 {[%clk 0:02:16]} 17. Nfd2 {[%clk
0:02:16.9]} 17... b6 {[%clk 0:02:12]} 18. Nb3 {[%clk 0:02:16.5]} 18... Ra8
{[%clk 0:02:03.1]} 19. a4 {[%clk 0:02:16.5]} 19... Nc5 {[%clk 0:02:01.1]} 20.
Nbxc5 {[%clk 0:02:09.7]} 20... bxc5 {[%clk 0:02:02]} 21. f3 {[%clk 0:02:00.1]}
21... Nd4 {[%clk 0:01:59.1]} 22. Be1 {[%clk 0:02:00.1]} 22... Bf5 {[%clk
0:01:58.3]} 23. Bc3 {[%clk 0:01:56.5]} 23... h5 {[%clk 0:01:46.4]} 24. Ng3
{[%clk 0:01:50.6]} 24... Bg6 {[%clk 0:01:35.7]} 25. Bd3 {[%clk 0:01:46.7]} 25...
Qf6 {[%clk 0:01:31]} 26. Bxg6 {[%clk 0:01:34.7]} 26... Qxg6 {[%clk 0:01:31.9]}
27. a5 {[%clk 0:01:23.1]} 27... g4 {[%clk 0:01:25.6]} 28. Bxd4 {[%clk 0:01:08]}
28... exd4 {[%clk 0:01:24.6]} 29. a6 {[%clk 0:01:02.5]} 29... Bh6 {[%clk
0:01:18.8]} 30. fxg4 {[%clk 0:00:57.2]} 30... Be3+ {[%clk 0:01:14.4]} 31. Kh1
{[%clk 0:00:57.4]} 31... hxg4 {[%clk 0:01:13.9]} 32. Rxf8+ {[%clk 0:00:54.9]}
32... Kxf8 {[%clk 0:01:09.9]} 33. Qf1+ {[%clk 0:00:47.7]} 33... Ke7 {[%clk
0:00:49.7]} 34. a7 {[%clk 0:00:44.6]} 34... Kd7 {[%clk 0:00:46.1]} 35. Qd1
{[%clk 0:00:41.6]} 35... Qh7 {[%clk 0:00:36.6]} 36. Qa4+ {[%clk 0:00:37.9]}
36... Ke7 {[%clk 0:00:34.4]} 37. Qd1 {[%clk 0:00:21.5]} 37... Rh8 {[%clk
0:00:26.5]} 38. Nf1 {[%clk 0:00:19.5]} 38... g3 {[%clk 0:00:24.1]} 39. h3 {[%clk
0:00:16.2]} 39... Qe4 {[%clk 0:00:23.4]} 40. Qf3 {[%clk 0:00:10.9]} 40... Rxh3+
{[%clk 0:00:22.9]} 0-1

[Event "Late-Titled-Tuesday-Blitz-March-12-2024"]
[Site "Chess.com"]
[Date "2024.03.12"]
[Round "6"]
[White "Eloist"]
[Black "YoreDea"]
[Result "1-0"]
[WhiteElo "2468"]
[BlackElo "2586"]
[TimeControl "180+1"]
[EndTime "15:05:33 PDT"]
[Termination "Eloist won by checkmate"]

1. e4 {[%clk 0:03:00.9]} 1... e6 {[%clk 0:02:50.2]} 2. d4 {[%clk 0:02:59.2]}
2... d5 {[%clk 0:02:50.4]} 3. Nd2 {[%clk 0:02:59]} 3... c5 {[%clk 0:02:49.9]} 4.
exd5 {[%clk 0:02:56.7]} 4... Qxd5 {[%clk 0:02:49]} 5. Ngf3 {[%clk 0:02:56.1]}
5... Nf6 {[%clk 0:02:47.3]} 6. Bc4 {[%clk 0:02:52.5]} 6... Qc6 {[%clk
0:02:44.8]} 7. O-O {[%clk 0:02:50]} 7... Be7 {[%clk 0:02:43.8]} 8. dxc5 {[%clk
0:02:48.5]} 8... Qxc5 {[%clk 0:02:42.1]} 9. b3 {[%clk 0:02:44]} 9... O-O {[%clk
0:02:40.7]} 10. Bb2 {[%clk 0:02:44]} 10... Rd8 {[%clk 0:02:40]} 11. Qe2 {[%clk
0:02:44]} 11... Nc6 {[%clk 0:02:39.3]} 12. Ne4 {[%clk 0:02:41.2]} 12... Nxe4
{[%clk 0:01:50.1]} 13. Qxe4 {[%clk 0:02:42.1]} 13... f5 {[%clk 0:01:50.2]} 14.
Qe2 {[%clk 0:02:37]} 14... Bf6 {[%clk 0:01:34.2]} 15. Bxe6+ {[%clk 0:02:31.5]}
15... Kh8 {[%clk 0:01:30.3]} 16. Bxf6 {[%clk 0:02:30]} 16... Re8 {[%clk
0:01:27.8]} 17. Ng5 {[%clk 0:02:13.3]} 17... Bxe6 {[%clk 0:01:17.7]} 18. Qh5
{[%clk 0:02:07.8]} 18... Bg8 {[%clk 0:01:11.4]} 19. Qh6 {[%clk 0:01:36.8]} 19...
Qf8 {[%clk 0:01:04.6]} 20. Bb2 {[%clk 0:01:28.9]} 20... Ne5 {[%clk 0:01:02.7]}
21. Rfe1 {[%clk 0:01:22.3]} 21... gxh6 {[%clk 0:00:48.6]} 22. Rxe5 {[%clk
0:01:18.3]} 22... Qg7 {[%clk 0:00:44.8]} 23. Nf3 {[%clk 0:00:44.7]} 23... Red8
{[%clk 0:00:27.2]} 24. Rb1 {[%clk 0:00:39]} 24... Bd5 {[%clk 0:00:23.2]} 25. Re3
{[%clk 0:00:26.6]} 25... Qxb2 {[%clk 0:00:14.4]} 26. Rxb2 {[%clk 0:00:27.5]}
26... Bxf3 {[%clk 0:00:11.1]} 27. gxf3 {[%clk 0:00:27.6]} 27... Rd1+ {[%clk
0:00:09.3]} 28. Kg2 {[%clk 0:00:27.3]} 28... Rg8+ {[%clk 0:00:09.9]} 29. Kh3
{[%clk 0:00:27.6]} 29... f4 {[%clk 0:00:07.5]} 30. Re2 {[%clk 0:00:26.9]} 30...
Rd5 {[%clk 0:00:07.3]} 31. Kh4 {[%clk 0:00:24.2]} 31... Rdg5 {[%clk 0:00:04.1]}
32. c4 {[%clk 0:00:22.8]} 32... Rg2 {[%clk 0:00:04]} 33. h3 {[%clk 0:00:21.7]}
33... R2g5 {[%clk 0:00:03.1]} 34. Re4 {[%clk 0:00:18.1]} 34... Rf5 {[%clk
0:00:02.8]} 35. Rbe2 {[%clk 0:00:16.8]} 35... Rg2 {[%clk 0:00:02.2]} 36. Re8+
{[%clk 0:00:15.4]} 36... Kg7 {[%clk 0:00:02.8]} 37. R8e7+ {[%clk 0:00:15.6]}
37... Kf6 {[%clk 0:00:02.9]} 38. R2e6# {[%clk 0:00:14.8]} 1-0

[Event "Late-Titled-Tuesday-Blitz-March-12-2024"]
[Site "Chess.com"]
[Date "2024.03.12"]
[Round "6"]
[White "Stanbad1"]
[Black "Bkmzzzzz"]
[Result "0-1"]
[WhiteElo "2513"]
[BlackElo "2393"]
[TimeControl "180+1"]
[EndTime "15:05:33 PDT"]
[Termination "Bkmzzzzz won by resignation"]

1. d4 {[%clk 0:03:00.9]} 1... d5 {[%clk 0:02:59.3]} 2. Nc3 {[%clk 0:03:01.2]}
2... e6 {[%clk 0:02:58.3]} 3. Bf4 {[%clk 0:03:01.3]} 3... Bd6 {[%clk 0:02:57.9]}
4. Bxd6 {[%clk 0:03:01]} 4... Qxd6 {[%clk 0:02:58.8]} 5. e3 {[%clk 0:03:01.6]}
5... Nf6 {[%clk 0:02:57.4]} 6. Nf3 {[%clk 0:03:01.8]} 6... O-O {[%clk
0:02:57.9]} 7. Bd3 {[%clk 0:03:01.8]} 7... c5 {[%clk 0:02:56.9]} 8. dxc5 {[%clk
0:03:02.4]} 8... Qxc5 {[%clk 0:02:57]} 9. O-O {[%clk 0:03:03]} 9... Nc6 {[%clk
0:02:49]} 10. Re1 {[%clk 0:03:03.1]} 10... a6 {[%clk 0:02:48]} 11. h3 {[%clk
0:03:03]} 11... b5 {[%clk 0:02:46.3]} 12. e4 {[%clk 0:03:03]} 12... dxe4 {[%clk
0:02:19.8]} 13. Nxe4 {[%clk 0:03:01]} 13... Nxe4 {[%clk 0:02:19.7]} 14. Bxe4
{[%clk 0:03:01.9]} 14... Bb7 {[%clk 0:02:08]} 15. c3 {[%clk 0:03:00.7]} 15...
Rad8 {[%clk 0:02:06.7]} 16. Qe2 {[%clk 0:02:58.9]} 16... h6 {[%clk 0:02:03.7]}
17. Red1 {[%clk 0:02:58.2]} 17... Qb6 {[%clk 0:01:53.5]} 18. Bc2 {[%clk
0:02:57.2]} 18... Ne7 {[%clk 0:01:48.1]} 19. Ne5 {[%clk 0:02:54.1]} 19... Qc7
{[%clk 0:01:43.6]} 20. a4 {[%clk 0:02:41.4]} 20... Rxd1+ {[%clk 0:01:33.5]} 21.
Rxd1 {[%clk 0:02:39.6]} 21... bxa4 {[%clk 0:01:31.5]} 22. Rd7 {[%clk 0:02:39]}
22... Qb6 {[%clk 0:01:23.3]} 23. Rxe7 {[%clk 0:02:35.3]} 23... Bd5 {[%clk
0:01:22.7]} 24. Bxa4 {[%clk 0:02:30.6]} 24... Qa5 {[%clk 0:01:09.8]} 25. Bc2
{[%clk 0:02:18.8]} 25... Qa1+ {[%clk 0:00:51.5]} 26. Kh2 {[%clk 0:02:17.3]}
26... Qc1 {[%clk 0:00:52]} 27. Nd3 {[%clk 0:02:09.1]} 27... Qg5 {[%clk 0:00:51]}
28. Qg4 {[%clk 0:01:22.5]} 28... Qxe7 {[%clk 0:00:49]} 29. Nf4 {[%clk
0:01:22.7]} 29... Qd6 {[%clk 0:00:38.4]} 30. g3 {[%clk 0:01:21.1]} 30... Qe5
{[%clk 0:00:28]} 31. Qd1 {[%clk 0:01:14]} 31... Bb7 {[%clk 0:00:23.3]} 32. h4
{[%clk 0:01:12.9]} 32... Qc5 {[%clk 0:00:22.7]} 33. Kg1 {[%clk 0:01:11.3]} 33...
Qb5 {[%clk 0:00:20.2]} 34. b3 {[%clk 0:01:09]} 34... Rc8 {[%clk 0:00:18.7]} 35.
c4 {[%clk 0:01:07.9]} 35... Qc6 {[%clk 0:00:18.2]} 36. Kh2 {[%clk 0:01:07.6]}
36... g6 {[%clk 0:00:15.4]} 37. Qf1 {[%clk 0:00:53.1]} 37... h5 {[%clk
0:00:15.5]} 38. Bd3 {[%clk 0:00:47.2]} 38... Rd8 {[%clk 0:00:15.2]} 39. Qb1
{[%clk 0:00:38.6]} 39... Rxd3 {[%clk 0:00:13.1]} 40. Nd5 {[%clk 0:00:34.4]}
40... Rxd5 {[%clk 0:00:11.6]} 41. cxd5 {[%clk 0:00:34.4]} 41... Qxd5 {[%clk
0:00:12.5]} 42. Qg1 {[%clk 0:00:33.7]} 42... Qxb3 {[%clk 0:00:12.5]} 43. g4
{[%clk 0:00:33.1]} 43... Qf3 {[%clk 0:00:12.5]} 44. gxh5 {[%clk 0:00:32.7]}
44... Qxh5 {[%clk 0:00:12.6]} 45. Kh3 {[%clk 0:00:33.1]} 45... Qf3+ {[%clk
0:00:12.8]} 46. Kh2 {[%clk 0:00:33.5]} 46... Qg2+ {[%clk 0:00:12.4]} 47. Qxg2
{[%clk 0:00:32.8]} 47... Bxg2 {[%clk 0:00:13.3]} 48. Kxg2 {[%clk 0:00:33.7]}
48... a5 {[%clk 0:00:13.8]} 0-1

[Event "Late-Titled-Tuesday-Blitz-March-12-2024"]
[Site "Chess.com"]
[Date "2024.03.12"]
[Round "6"]
[White "RichardShtivelband"]
[Black "matagordo"]
[Result "1-0"]
[WhiteElo "2492"]
[BlackElo "2303"]
[TimeControl "180+1"]
[EndTime "15:05:33 PDT"]
[Termination "RichardShtivelband won by resignation"]

1. d4 {[%clk 0:03:00.9]} 1... Nf6 {[%clk 0:02:59.4]} 2. c4 {[%clk 0:03:00.3]}
2... d6 {[%clk 0:02:59.9]} 3. Nf3 {[%clk 0:02:58.9]} 3... g6 {[%clk 0:02:59.4]}
4. Nc3 {[%clk 0:02:59.1]} 4... Bf5 {[%clk 0:02:59.7]} 5. g3 {[%clk 0:02:55.3]}
5... Ne4 {[%clk 0:02:59.2]} 6. Qb3 {[%clk 0:02:54.1]} 6... Nxc3 {[%clk
0:02:57.9]} 7. Qxc3 {[%clk 0:02:53.1]} 7... Bg7 {[%clk 0:02:57.2]} 8. Bg2 {[%clk
0:02:52.8]} 8... Be4 {[%clk 0:02:17.7]} 9. O-O {[%clk 0:02:51.1]} 9... O-O
{[%clk 0:02:16.4]} 10. Qb3 {[%clk 0:02:45.7]} 10... Nd7 {[%clk 0:02:14.2]} 11.
Rd1 {[%clk 0:02:42.7]} 11... Rb8 {[%clk 0:02:09.2]} 12. Be3 {[%clk 0:02:33.7]}
12... b6 {[%clk 0:02:06.9]} 13. a4 {[%clk 0:02:30.8]} 13... c5 {[%clk
0:02:03.4]} 14. Qa3 {[%clk 0:02:18.9]} 14... Qc7 {[%clk 0:02:01.7]} 15. Rac1
{[%clk 0:02:17.4]} 15... Rfc8 {[%clk 0:01:46.6]} 16. b4 {[%clk 0:02:16.5]} 16...
a6 {[%clk 0:01:24.4]} 17. dxc5 {[%clk 0:02:02.8]} 17... bxc5 {[%clk 0:01:23.9]}
18. b5 {[%clk 0:02:02.4]} 18... axb5 {[%clk 0:01:21.7]} 19. axb5 {[%clk
0:01:55.1]} 19... Ra8 {[%clk 0:01:21.8]} 20. Qb3 {[%clk 0:01:53.3]} 20... Ra5
{[%clk 0:01:16.3]} 21. Bd2 {[%clk 0:01:49.4]} 21... Ra7 {[%clk 0:01:13.5]} 22.
Bc3 {[%clk 0:01:48.6]} 22... f6 {[%clk 0:01:06.8]} 23. Ra1 {[%clk 0:01:47.6]}
23... Rca8 {[%clk 0:01:06]} 24. h4 {[%clk 0:01:32.3]} 24... Nb6 {[%clk
0:00:53.5]} 25. Nd2 {[%clk 0:01:19.1]} 25... Bxg2 {[%clk 0:00:52.9]} 26. Kxg2
{[%clk 0:01:20]} 26... Na4 {[%clk 0:00:53]} 27. Ne4 {[%clk 0:01:04.9]} 27... Qb7
{[%clk 0:00:51.9]} 28. f3 {[%clk 0:01:04.8]} 28... Nxc3 {[%clk 0:00:41.7]} 29.
Rxa7 {[%clk 0:01:03]} 29... Rxa7 {[%clk 0:00:31.4]} 30. Nxc3 {[%clk 0:01:03]}
30... Qa8 {[%clk 0:00:22.4]} 31. Nd5 {[%clk 0:00:58.7]} 31... Kf8 {[%clk
0:00:18.4]} 32. h5 {[%clk 0:00:55.8]} 32... Ra2 {[%clk 0:00:18.4]} 33. Qe3
{[%clk 0:00:50.6]} 33... Ra7 {[%clk 0:00:12.2]} 34. h6 {[%clk 0:00:41]} 34...
Bh8 {[%clk 0:00:11.7]} 35. Qe6 {[%clk 0:00:37.7]} 35... Qe8 {[%clk 0:00:03.6]}
36. b6 {[%clk 0:00:34.9]} 36... Rb7 {[%clk 0:00:02.4]} 37. Ra1 {[%clk
0:00:33.9]} 37... Rb8 {[%clk 0:00:02.3]} 38. Ra7 {[%clk 0:00:32.9]} 38... Qf7
{[%clk 0:00:01.1]} 39. Qxf7+ {[%clk 0:00:32.2]} 39... Kxf7 {[%clk 0:00:02]} 40.
Rxe7+ {[%clk 0:00:31.7]} 40... Kf8 {[%clk 0:00:02.5]} 41. Rxh7 {[%clk
0:00:30.3]} 41... Kg8 {[%clk 0:00:03]} 42. Rc7 {[%clk 0:00:29.6]} 42... f5
{[%clk 0:00:02.9]} 43. b7 {[%clk 0:00:29]} 43... Be5 {[%clk 0:00:02.7]} 44. Rc8+
{[%clk 0:00:28.5]} 1-0